Cogmind - Beta 14 @@@ ROGUE MODE // 2024.10.12 @ 21:56:08 Player: Cereal Killer Result: Destroyed by G-73 Enforcer with Heavy Laser Performance ------------- Evolutions (8) 4000 Regions Visited (31) 6200 Robots Destroyed (518) 2590 Value Destroyed (31045) 31045 Prototype IDs (70) 1400 Alien Tech Used (0) 0 Bonus (29596) 29596 TOTAL SCORE: 74831 Bonus ------- Triggered High Security 500 Triggered Max Security 1000 High Alert Combat Kills 13414 Follower Combat Kills 2924 Entered Garrisons 1000 Entered DSFs 500 Aligned with FarCom 300 Met Data Miner 300 Acquired ECA 300 Met Warlord at Base 500 MAIN.C Attacked Warlord 500 Warlord Defense Kills 4008 Met Warlord at Research 2000 Invited to Help at Command 2000 Scanned by Researcher 500 Friendly Fire -150 Cogmind --------- Core Integrity 0/1450 Matter 256/300 Energy 18/100 System Corruption 23% Temperature Cool (9) Movement Core (100) Ox1 Location -2/Testing Parts ------- > --- POWER (3) -------- (None) > --- PROPULSION (6) --- (None) > --- UTILITY (12) ----- Quantum Capacitor Advanced Cloaking Device > --- WEAPON (2) ------- (None) > --- INVENTORY (5) ---- Centrium Leg Enhanced Quantum Rifle Enhanced Nova Cannon Peak State ------------ > --- POWER ------------ Quantum Reactor Quantum Reactor Light Quantum Reactor > --- PROPULSION ------- Centrium Leg Centrium Leg Centrium Leg Centrium Leg Centrium Leg Centrium Leg > --- UTILITY ---------- Advanced Cooling System Advanced Coolant Injector High-capacity Storage Unit Advanced Targeting Computer Experimental Core Analyzer Improved Armor Integrity Analyzer Advanced Weapon Cycler Advanced Transmission Jammer Advanced Phase Shifter Layered Heavy Armor Plating Advanced Hacking Suite > --- WEAPON ----------- Enhanced Quantum Rifle Enhanced Quantum Rifle > --- INVENTORY -------- Quantum Reactor Centrium Leg Cooled Antigrav System Cooled Antigrav System Advanced Coolant Injector Advanced Coolant Injector Matter Compressor Quantum Capacitor Advanced Force Booster Advanced Cloaking Device Experimental Thermal Shield Advanced Force Field Enhanced Nova Cannon Enhanced Nova Cannon Enhanced Nova Cannon Smartbomb Launcher RU-N14's Throwing Claymores v3 Vibroblade [Rating: 191] Favorites ----------- Power Reinforced Fission Core Engine Improved Deuterium Engine Power Core Reinforced Fission Core Reactor Quantum Reactor Propulsion Spiked Medium Treads Treads Spiked Medium Treads Leg Centrium Leg Wheel Compact Wheel Hover Unit Cooled Antigrav System Flight Unit Cooled Impulse Thruster Utility High-capacity Storage Unit Device Advanced Heat Sink Storage High-capacity Storage Unit Processor Improved Armor Integrity Analyzer Hackware Advanced Hacking Suite Protection Light Armor Plating Weapon Enhanced Nova Cannon Energy Gun Enhanced Quantum Rifle Energy Cannon Enhanced Nova Cannon Ballistic Gun Railgun Ballistic Cannon Heavy Autocannon Launcher Grenade Launcher Special Weapon RU-N14's Throwing Claymores v3 Slashing Weapon Plasma Sword Piercing Weapon Makeshift Spear Build | -11 -10 -10 -10 -9 -8 -8 -8 -8 -7 -7 -6 -6 -6 -6 -5 -5 -5 -5 -5 -4 -4 -4 -4 -3 -3 -3 -3 -3 -3 -2 -2 ------- Run | Yrd Mat Min Exi Min Mat Gar Mat Gar Fac Gar Fac Low Low Dat Pro Fac Upp Upp War Pro Fac Was Fac Res Gar Res Gar Res DSF Res Tes Slots Evolved 16 | . . . . . 4 . . . 2 . 2 . . . . 2 . . . . 2 . . 2 . . . . . 2 . Power 2 | . . . . . 1 . . . . . . . . . . . . . . . . . . . . . . . . 1 . Propulsion 4 | . . . . . . . . . 1 . 1 . . . . . . . . . 1 . . 1 . . . . . . . Utility 10 | . . . . . 3 . . . 1 . 1 . . . . 2 . . . . 1 . . 1 . . . . . 1 . Weapon . | . . . . . . . . . . . . . . . . . . . . . . . . . . . . . . . . Parts Attached 527 | 5 6 2 1 3 24 34 9 35 23 41 40 . 5 5 1 47 5 20 21 6 36 15 13 24 22 1 25 3 14 24 17 Power 62 | 1 . 1 . . 2 3 1 6 7 7 7 . . . . 7 . . 1 . 3 3 2 1 4 . 1 . . 4 1 Engine 30 | 1 . 1 . . 2 2 . 4 6 4 6 . . . . 3 . . . . 1 . . . . . . . . . . Core 14 | . . . . . . 1 1 2 1 3 1 . . . . 4 . . . . 1 . . . . . . . . . . Reactor 18 | . . . . . . . . . . . . . . . . . . . 1 . 1 3 2 1 4 . 1 . . 4 1 Propulsion 88 | 2 . 1 . . 3 3 . 4 4 9 8 . . . . 7 1 8 4 . 6 3 3 4 5 . 5 1 7 . . Treads 33 | . . . . . 1 . . 2 . 1 1 . . . . . . 5 2 . 1 3 3 4 4 . 5 1 . . . Leg 14 | . . . . . . . . . . 6 . . . . . . . . . . . . . . 1 . . . 7 . . Wheel 39 | 2 . 1 . . 2 3 . 2 4 2 7 . . . . 7 1 3 . . 5 . . . . . . . . . . Hover 1 | . . . . . . . . . . . . . . . . . . . 1 . . . . . . . . . . . . Flight 1 | . . . . . . . . . . . . . . . . . . . 1 . . . . . . . . . . . . Utility 175 | 1 4 . 1 3 5 7 5 9 7 12 14 . 1 2 1 20 . 7 8 3 14 6 7 10 2 1 9 . 1 8 7 Device 120 | . 2 . . 3 4 1 3 4 4 10 8 . 1 2 1 16 . 6 5 3 9 6 4 8 2 . 7 . 1 4 6 Storage 4 | 1 1 . 1 . . . . . . 1 . . . . . . . . . . . . . . . . . . . . . Processor 9 | . 1 . . . . . . . 1 . 2 . . . . . . 1 1 . . . . 1 . 1 . . . 1 . Hackware 5 | . . . . . . . . . 1 . . . . . . . . . . . 2 . 1 1 . . . . . . . Protection 37 | . . . . . 1 6 2 5 1 1 4 . . . . 4 . . 2 . 3 . 2 . . . 2 . . 3 1 Artifact . | . . . . . . . . . . . . . . . . . . . . . . . . . . . . . . . . Weapon 202 | 1 2 . . . 14 21 3 16 5 13 11 . 4 3 . 13 4 5 8 3 13 3 1 9 11 . 10 2 6 12 9 Energy Gun 59 | 1 1 . . . 8 12 1 4 . 3 3 . . . . 2 2 3 1 . . . . 3 3 . 4 1 . 7 . Energy Cannon 68 | . . . . . . 4 . 3 1 6 4 . 3 3 . 8 2 1 3 1 2 2 . 1 6 . 4 1 5 3 5 Ballistic Gun 11 | . 1 . . . 1 . . . 2 3 4 . . . . . . . . . . . . . . . . . . . . Ballistic Cannon 25 | . . . . . . 2 1 6 2 1 . . . . . 2 . . 3 2 3 1 . 2 . . . . . . . Launcher 27 | . . . . . 5 3 1 3 . . . . . . . . . . . . 4 . . 2 2 . 2 . 1 2 2 Special Weapon 3 | . . . . . . . . . . . . . . . . . . . 1 . . . 1 . . . . . . . 1 Impact Weapon . | . . . . . . . . . . . . . . . . . . . . . . . . . . . . . . . . Slashing Weapon 8 | . . . . . . . . . . . . . . . . 1 . 1 . . 4 . . 1 . . . . . . 1 Piercing Weapon 1 | . . . . . . . . . . . . . 1 . . . . . . . . . . . . . . . . . . Special Melee Weapon . | . . . . . . . . . . . . . . . . . . . . . . . . . . . . . . . . Unidentified Prototypes 31 | . . . . 1 3 . . . 2 . 3 . . 1 . 3 . . 6 . 5 2 . 2 . . . 1 . 1 1 Parts Lost 130 | . . 2 . . 4 7 3 14 4 19 5 . 1 . . 9 1 8 1 3 5 . 4 4 3 . 4 . 1 1 27 Power 20 | . . 1 . . . 2 1 3 . 4 1 . . . . 2 . . . . . . . 1 1 . . . . . 4 Propulsion 36 | . . 1 . . 2 3 . 4 1 7 . . . . . 5 . 5 . . 1 . . . 1 . . . . . 6 Utility 59 | . . . . . . 2 2 5 3 5 2 . 1 . . 2 1 3 1 3 4 . 3 3 . . 4 . 1 . 14 Weapon 15 | . . . . . 2 . . 2 . 3 2 . . . . . . . . . . . 1 . 1 . . . . 1 3 Highest Loss Streak 27 | . . 2 . . 3 2 2 7 2 9 3 . 1 . . 3 1 7 1 1 2 . 3 2 2 . 1 . 1 1 27 To Critical Strikes 4 | . . . . . . . . 1 . . . . . . . . . . . . . . . . . . . . . . 3 Average Slot Usage (%) 90 | . 88 99 100 100 95 94 98 91 93 93 96 86 83 81 86 85 90 81 98 89 89 79 77 77 92 93 88 85 92 95 78 Engine 5 | . 14 14 14 14 18 12 16 8 11 9 11 6 6 6 6 3 . . . . 3 1 . . . . . . . . . Core 3 | . . . . . . 4 1 9 2 4 1 6 6 6 6 5 11 11 9 5 1 . . . . . . . . . . Reactor 3 | . . . . . . . . . . . . . . . . . . . 1 5 5 8 9 4 8 9 9 9 9 12 8 Treads 7 | . . . . . . . . 3 . . 2 . . . . . . 6 22 23 15 9 14 15 20 23 20 19 3 . . Leg 3 | . . . . . . . . . . 16 2 . . . . . . . . . . . . . . . . . 22 26 24 Wheel 8 | . 28 27 28 28 17 15 18 8 17 2 17 13 13 13 13 15 23 6 . . 8 6 . . . . . . . . . Device 19 | . 3 14 14 14 28 20 17 12 23 18 18 13 10 13 13 12 11 25 24 14 20 26 19 23 26 28 22 19 19 20 17 Storage 6 | . 15 14 14 14 9 9 9 9 7 6 6 6 6 6 6 5 5 5 5 5 5 5 5 4 4 4 4 4 4 4 3 Processor 10 | . . . . . . . . . . 7 9 20 20 20 20 17 17 11 17 17 15 15 15 14 14 12 14 14 14 13 8 Hackware 2 | . . . . . . . . . 3 7 6 6 6 6 6 5 5 . . . 2 . 1 4 5 4 4 4 4 4 3 Protection 4 | . . . . . 3 14 17 22 7 3 2 . . . . 5 2 . 3 8 3 . 3 . . . 2 4 4 4 2 Energy Gun 4 | . 17 28 28 28 14 8 14 7 . 3 1 . . . . 1 5 7 3 . . . . 1 2 . 2 9 . 4 . Energy Cannon 3 | . . . . . . . . . 6 4 1 13 12 5 13 8 4 . . . . 4 4 1 6 9 5 . 8 3 6 Ballistic Gun 1 | . 8 . . . . . . . 1 4 9 . . . . . . . . . . . . . . . . . . . . Ballistic Cannon 1 | . . . . . . 7 2 8 6 1 . . . . . . . . . 4 4 . . 1 . . . . . . . Peak Build Rating 191 | 5 7 8 11 17 30 42 34 48 57 73 80 79 84 84 81 98 86 100 119 116 132 148 152 170 161 157 159 144 169 191 191 Average Rating 92 | 3 6 7 9 13 24 29 31 32 51 63 73 78 76 74 80 84 75 77 107 108 119 141 145 159 155 156 148 143 163 187 157 On Entrance 82 | . 5 7 8 11 14 26 29 34 48 49 60 79 78 78 80 81 81 71 100 113 98 117 148 122 139 157 157 144 144 169 191 Naked Turns . | . . . . . . . . . . . . . . . . . . . . . . . . . . . . . . . . Heaviest Build 150 | 10 52 50 50 50 62 70 68 88 92 92 88 80 80 79 79 116 116 104 139 138 142 124 116 121 111 111 124 113 128 149 150 Greatest Support 220 | 26 26 26 26 26 32 30 30 40 38 53 64 56 56 56 56 56 52 114 114 114 114 140 180 220 210 196 203 196 196 180 180 Greatest Overweight (x) 9 | . 1 3 1 1 3 4 2 7 7 3 5 1 1 1 1 4 2 9 1 1 8 2 . . . . . . 2 . 1 Average Overweight (x) 1 | . . 1 1 1 1 2 1 4 2 1 1 1 1 1 1 1 2 6 . . 2 . . . . . . . . . . Largest Inventory Capacity 20 | 8 20 20 20 20 20 20 20 20 20 20 20 20 20 20 20 20 20 20 20 20 20 20 20 20 20 20 20 20 20 20 20 Average Capacity 19 | 7 12 20 20 20 20 20 20 20 20 18 20 20 20 20 20 20 20 20 20 20 20 20 20 20 20 20 20 20 20 20 18 Most Carried 20 | 5 6 9 15 16 20 20 20 20 20 20 20 20 20 20 20 20 20 20 20 20 20 20 20 20 20 20 20 20 20 20 20 Average Carried 18 | 2 3 8 12 15 18 19 19 18 19 17 19 19 19 19 20 18 19 19 19 19 19 19 19 18 18 20 19 20 19 19 17 Final Capacity 20 | 8 20 20 20 20 20 20 20 20 20 20 20 20 20 20 20 20 20 20 20 20 20 20 20 20 20 20 20 20 20 20 5 Final Carried 20 | 3 5 9 15 16 20 20 19 20 20 20 20 20 19 20 20 20 20 20 20 20 19 20 18 19 20 20 20 20 20 20 3 Class Distribution -------------------- 64% | Scavenger-Mutant 26% | Mutant 4% | Scavenger-Skirmisher Dominant Class ---------------- Mutant | -10/Materials Mutant | -10/Mines Mutant | -10/Exiles Mutant | -9/Mines Scavenger-Skirmisher | -8/Materials Scavenger-Mutant | -8/Garrison Scavenger-Mutant | -8/Materials Scavenger-Mutant | -8/Garrison Scavenger-Mutant | -7/Factory Scavenger-Mutant | -7/Garrison Mutant | -6/Factory Mutant | -6/Lower Caves Mutant | -6/Lower Caves Mutant | -6/Data Miner Scavenger-Mutant | -5/Proximity Caves Scavenger-Mutant | -5/Factory Scavenger-Mutant | -5/Upper Caves Scavenger-Mutant | -5/Upper Caves Scavenger-Mutant | -5/Warlord Scavenger-Mutant | -4/Proximity Caves Scavenger-Skirmisher | -4/Factory Scavenger-Mutant | -4/Waste Scavenger-Mutant | -4/Factory Mutant | -3/Research Scavenger-Mutant | -3/Garrison Scavenger-Mutant | -3/Research Scavenger-Mutant | -3/Garrison Scavenger-Mutant | -3/Research Scavenger-Mutant | -3/DSF Mutant | -2/Research Mutant | -2/Testing Resources | -11 -10 -10 -10 -9 -8 -8 -8 -8 -7 -7 -6 -6 -6 -6 -5 -5 -5 -5 -5 -4 -4 -4 -4 -3 -3 -3 -3 -3 -3 -2 -2 ----------- Run | Yrd Mat Min Exi Min Mat Gar Mat Gar Fac Gar Fac Low Low Dat Pro Fac Upp Upp War Pro Fac Was Fac Res Gar Res Gar Res DSF Res Tes Matter Collected 10784 | 184 31 220 . 15 345 637 43 549 788 755 909 281 35 60 10 618 50 370 268 790 1031 218 183 332 987 . 449 . 240 298 88 Remotely . | . . . . . . . . . . . . . . . . . . . . . . . . . . . . . . . . Salvage Created 26155 | . 63 325 . 15 379 1673 219 610 852 1254 1257 169 573 388 86 1843 368 612 1860 336 1311 1554 3609 1361 1891 . 1361 . 670 524 992 Parts 865 | . 4 17 . . 24 59 12 36 40 50 82 2 19 5 6 60 7 18 37 20 56 13 55 65 58 . 44 . 26 23 27 Haulers Intercepted 9 | . . . . . 1 . . . 1 . . . . . . 5 . . . . . . . . . . . . . 2 . Recyclers Shooed 10 | . . 1 . . 1 . 1 . 1 . . . . . . 3 . . . . 1 . . 2 . . . . . . . Parts Field Recycled . | . . . . . . . . . . . . . . . . . . . . . . . . . . . . . . . . Retrieved Matter . | . . . . . . . . . . . . . . . . . . . . . . . . . . . . . . . . Parts Self-Destructed 72 | . . . . . . . . . . . . . 23 . 6 . 7 16 . 20 . . . . . . . . . . . Prevented . | . . . . . . . . . . . . . . . . . . . . . . . . . . . . . . . . Kills | -11 -10 -10 -10 -9 -8 -8 -8 -8 -7 -7 -6 -6 -6 -6 -5 -5 -5 -5 -5 -4 -4 -4 -4 -3 -3 -3 -3 -3 -3 -2 -2 ------- Run | Yrd Mat Min Exi Min Mat Gar Mat Gar Fac Gar Fac Low Low Dat Pro Fac Upp Upp War Pro Fac Was Fac Res Gar Res Gar Res DSF Res Tes Combat Hostiles Destroyed 439 | . 2 7 . . 9 35 10 23 16 29 22 . 12 4 2 24 8 9 31 12 23 6 46 15 35 . 20 . 10 6 23 Melee 9 | . . . . . . . . . . . . . . . . . . . . . 6 . . . . . . . . . 3 Guns 87 | . 2 7 . . 1 16 4 7 . 12 17 . . . . . 2 7 . . . . . . 5 . 7 . . . . Cannons 132 | . . . . . . 6 2 6 16 11 3 . 6 . 2 14 3 . 1 11 8 . 1 5 15 . 7 . 7 1 7 AOE 119 | . . . . . 8 10 4 9 . 1 2 . 4 . . 4 2 1 11 . 8 . 9 10 12 . 4 . 3 5 12 Classes Destroyed 26 | . 1 2 . . 6 . . 2 1 2 2 . . . . 2 . 1 2 . 1 1 . . . . . . . . 3 Worker 22 | . . 3 . 1 1 . . . 2 . 1 . . . . 4 . . . . 2 . 4 4 . . . . . . . Builder 16 | . . . . . 2 . . . 2 . 1 . . . . . . . . . . . 6 2 . . . . . 3 . Tunneler 3 | . . . . . . . . . . . . . . . . . . . . . 1 . 2 . . . . . . . . Hauler 9 | . . . . . 1 . . . 1 . . . . . . 5 . . . . . . . . . . . . . 2 . Recycler 9 | . . . . . 1 . . . 1 . . . . . . 1 . . . . . . 1 5 . . . . . . . Minesweeper 2 | . . . . . . . . . . . . . . . . . . 2 . . . . . . . . . . . . . Mechanic 4 | . . . . . . . . . . . . . . . . 1 . . . . . . 2 1 . . . . . . . Watcher 13 | . . . . . 2 . . . . . 6 . . . . . . . . . 2 . 2 . . . 1 . . . . Swarmer 87 | . . 3 . . 3 11 2 10 . 7 1 . 6 . . 8 4 3 4 8 . . . 5 3 . 3 . 3 3 . Cutter 3 | . . . . . . . . . . 3 . . . . . . . . . . . . . . . . . . . . . Saboteur 1 | . . . . . . . . . . . . . . . . . . . . . . . . . . . . . . . 1 Grunt 177 | . 2 4 . . 4 21 4 4 11 13 9 . 2 . . 2 2 4 14 . 14 . 19 4 15 . 10 . 5 2 12 Brawler 15 | . . . . . . . . . 1 . 1 . 3 . . . 1 . . . 1 . 3 . 3 . . . . . 2 Duelist 13 | . . . . . 1 . 1 1 1 . 1 . . . . . . . . . . . 5 . . . 2 . . . 1 Protector 3 | . . . . . . . . . . . 1 . . . . . . . . . . . 1 . . . . . . . 1 Sentry 40 | . . . . . 1 3 3 4 1 3 1 . 1 . . 1 1 . . . 1 . 8 . 8 . 3 . . 1 . Specialist 13 | . . . . . . . . 1 . 2 . . . . . 5 . . 2 . . . 2 . . . . . 1 . . Hunter 24 | . . . . . . . . 3 2 . 2 . . . . 2 . . 3 2 2 . 2 . 5 . 1 . . . . Programmer 36 | . . . . . . . . . . . 6 . . . 2 5 . 1 4 1 5 . 4 5 1 . . . . . 2 Heavy 4 | . . . . . . . . . . . . . . . . 1 . . . . . . 2 . . . . . 1 . . Behemoth 5 | . . . . . . . . . . 1 . . . . . . . 1 . 1 . . . 1 . . 1 . . . . Compactor 6 | . . . . . . . . . . . . . . . . . . . . . . 6 . . . . . . . . . Enhanced Grunt 4 | . . . . . . . . . . . . . . 4 . . . . . . . . . . . . . . . . . Investigator 1 | . . . . . . . . . . . . . . . . . . . . . . . . . . . . . . . 1 Striker 5 | . . . . . . . . . . . . . . . . . . . 3 . . . . . . . . . . . 2 Executioner 2 | . . . . . . . . . . . . . . . . . . . 1 . . . . . . . . . . . 1 Alpha 7 1 | . . . . . . . . . . . . . . . . . . . . . . . . . . . . . . . 1 Decomposer 2 | . . . . . . . . . . . . . . . . . . 2 . . . . . . . . . . . . . Packrat 3 | . . . . . . . . . . . . 2 . . . . . 1 . . . . . . . . . . . . . Best Kill Streak 17 | . 2 4 . 1 5 6 6 9 6 8 7 . 9 4 2 9 7 7 12 4 8 4 10 10 11 . 4 . 5 5 17 Combat Bots Only 17 | . 2 3 . . 3 6 6 9 5 8 5 . 9 4 2 7 7 7 12 4 6 4 9 7 11 . 4 . 5 3 17 Max Kills in Single Turn 9 | . 1 1 . 1 4 2 2 3 2 2 2 1 5 2 1 5 3 2 7 1 3 2 4 9 3 . 2 . 2 4 4 Gunslinging 1 | . . . . . . 1 . . . . . . . . . . . . . . . . . . . . . . . . . Exploded 4 | . . . . . 2 2 2 3 . 1 2 . 4 . . 2 2 1 4 . 2 . 2 4 3 . 2 . 2 3 4 Melee 1 | . . . . . . . . . . . . . . . . . . . . . 1 . . . . . . . . . 1 Uniques/NPCs Destroyed . | . . . . . . . . . . . . . . . . . . . . . . . . . . . . . . . . Combat | -11 -10 -10 -10 -9 -8 -8 -8 -8 -7 -7 -6 -6 -6 -6 -5 -5 -5 -5 -5 -4 -4 -4 -4 -3 -3 -3 -3 -3 -3 -2 -2 -------- Run | Yrd Mat Min Exi Min Mat Gar Mat Gar Fac Gar Fac Low Low Dat Pro Fac Upp Upp War Pro Fac Was Fac Res Gar Res Gar Res DSF Res Tes Hostile Shots Fired 2750 | . 7 39 . . 25 108 38 192 78 369 209 . 30 4 2 220 23 106 44 97 143 . 119 134 121 . 93 . 82 10 457 Missed 861 | . 2 8 . . 5 29 7 54 30 135 64 . 8 3 . 70 5 25 18 29 38 . 41 40 29 . 29 . 44 4 144 Damage Taken 29907 | . 55 420 . . 348 1082 527 1813 738 2507 1580 . 357 49 42 2488 218 1082 573 956 1531 . 1910 1843 1508 . 1190 . 830 169 6091 Core 4495 | . 24 175 . . 102 166 64 166 34 437 364 . 96 . . 365 26 198 44 74 165 . 215 85 164 . 66 . . . 1465 Absorbed by Shields 2753 | . . . . . . 55 . . . . 309 . . . . 499 82 177 . . 504 . 16 236 . . . . . . 875 Reduced by Siege Mode 145 | . . . . . . . . . . . . . . . . . . . . . . . . 145 . . . . . . . Redirected to Shielding 604 | . . . . . . 135 64 9 . . 192 . . . . . . . . . . . 204 . . . . . . . . Ignored by Resistances 2287 | . . . . . . . . 54 55 237 421 . 47 13 . 122 23 237 24 181 . . 7 101 106 . 245 . . . 414 Regen/Repaired (Parts) 589 | . . . . . . . . . 68 . . . . . . 16 . . 126 . . 316 63 . . . . . . . . Core Remaining (%) 47 | 100 . . . 20 . . . 9 . 32 . . . . 45 . . . . 29 . . 66 . . . . . 75 . . Volleys Fired 1206 | . 6 34 . 1 36 146 29 71 59 95 109 3 10 3 3 101 12 34 13 32 43 7 44 39 88 . 90 1 26 30 41 Largest 2 | . 2 2 . 2 2 2 2 2 2 2 2 2 2 1 2 2 2 2 2 1 2 1 1 2 2 . 2 2 2 2 2 Hottest 326 | . 70 90 . 90 122 250 122 250 147 250 176 70 250 250 180 250 250 250 250 250 250 250 250 326 240 . 240 130 240 240 240 Shots Fired 1977 | . 11 68 . 2 50 208 43 117 115 155 195 6 16 3 6 172 23 66 14 33 51 7 44 74 153 . 162 2 51 54 76 Gun 862 | . 11 68 . 2 42 150 32 59 2 98 176 . . . . 21 16 62 . . . . . 18 38 . 39 2 . 26 . Cannon 1008 | . . . . . . 48 2 55 113 57 19 6 16 3 6 151 7 4 14 33 43 7 40 36 94 . 114 . 49 25 66 Launcher 99 | . . . . . 8 10 9 3 . . . . . . . . . . . . 8 . . 20 21 . 9 . 2 3 6 Special 8 | . . . . . . . . . . . . . . . . . . . . . . . 4 . . . . . . . 4 Kinetic 488 | . 5 . . . 9 43 2 53 58 81 127 . . . . 24 . . 1 32 34 . . 19 . . . . . . . Thermal 1271 | . 6 34 . 1 29 155 32 61 57 72 67 6 16 3 6 124 23 66 13 1 2 7 40 35 94 . 153 2 49 51 66 Explosive 89 | . . . . . 8 10 9 3 . . . . . . . . . . . . 8 . 4 2 21 . 9 . 2 3 10 Electromagnetic 129 | . . 34 . 1 4 . . . . 2 1 . . . . 24 . . . . 7 . . 18 38 . . . . . . Robot Hit Streak 37 | . 2 21 . 1 6 23 11 15 10 13 17 3 11 4 6 20 13 11 14 7 8 4 6 15 17 . 12 . 19 24 37 Robot Miss Streak 7 | . 2 3 . 1 5 2 7 3 3 6 5 2 1 1 . 4 1 2 5 2 4 6 4 4 5 . 3 . 5 1 2 Penetration Max 2 | . . . . . . . . . 1 2 2 . . . . . . . . . 1 . . . . . . . . . . Secondary Targets 10 | . . 1 . . . 2 . . . 1 1 . . . . . 2 3 . . . . . . . . . . . . . Max Gunslinging Chain 1 | . . 1 . . . 1 . . . 1 1 . . . . . 1 1 . . . . . . . . . . . . . Capacitor 43 | . . . . . . . . . . . . . . . . . . . . . . 7 36 . . . . . . . . Shots Hit Robots 1168 | . 5 39 . 1 29 130 26 55 63 78 125 3 12 4 5 101 19 61 13 20 37 5 35 42 67 . 77 . 24 30 62 Core Hits 1034 | . 2 16 . 1 28 78 24 31 26 42 58 2 18 11 2 62 15 22 74 11 63 10 138 40 86 . 48 . 19 25 82 Critical Kills 13 | . 1 . . . . . . . . 2 2 . . . . . . . . . 2 . . . 2 . 3 . . . 1 Critical Parts Destroyed 9 | . . . . . . . . . . 3 4 . . . . . . . . . 2 . . . . . . . . . . Critical Strikes 76 | . 1 1 . . 5 13 1 9 7 7 6 . . . . 2 3 4 . 1 8 . 1 . 2 . 3 . . . 2 Burn 30 | . . 1 . . 5 12 1 3 . . . . . . . 1 3 4 . . . . . . . . . . . . . Meltdown 7 | . . . . . . . . . . 1 . . . . . . . . . . . . . . 2 . 3 . . . 1 Destroy 15 | . 1 . . . . . . . . 4 6 . . . . . . . . . 4 . . . . . . . . . . Blast 19 | . . . . . . 1 . 6 7 2 . . . . . 1 . . . 1 1 . . . . . . . . . . Sever 5 | . . . . . . . . . . . . . . . . . . . . . 3 . 1 . . . . . . . 1 Melee Attacks 48 | . . . . . . . . . . . . . . 1 . . . 8 . . 25 . . . . . . . . . 14 Impact . | . . . . . . . . . . . . . . . . . . . . . . . . . . . . . . . . Slashing 47 | . . . . . . . . . . . . . . . . . . 8 . . 25 . . . . . . . . . 14 Piercing 1 | . . . . . . . . . . . . . . 1 . . . . . . . . . . . . . . . . . Sneak Attacks 10 | . . . . . . . . . . . . . . 1 . . . 6 . . 3 . . . . . . . . . . Combat Hostiles 1 | . . . . . . . . . . . . . . . . . . . . . 1 . . . . . . . . . . Follow-up Attacks . | . . . . . . . . . . . . . . . . . . . . . . . . . . . . . . . . Damage Inflicted 68183 | . 66 529 . 59 1256 3657 1130 1930 2185 2891 3741 116 691 287 226 5125 609 1977 3001 1463 4626 680 6654 3858 6468 . 4032 . 1534 2047 7345 Guns 12355 | . 66 529 . 12 387 1910 349 674 . 1464 3005 . . . . 360 264 1130 . . . . . 229 614 . 636 . . 726 . Cannons 22109 | . . . . . . 651 48 750 2185 998 377 116 420 35 226 3163 226 45 412 1427 1069 284 932 1075 1933 . 2426 . 1019 304 1988 Explosions 31176 | . . . . 47 869 1096 733 506 . 429 359 . 271 203 . 1602 119 181 2589 36 2617 396 5444 2554 3921 . 962 . 515 1017 4710 Melee 2103 | . . . . . . . . . . . . . . 49 . . . 621 . . 935 . . . . . . . . . 498 Ramming 102 | . . . . . . . . . . . . . . . . . . . . . 5 . 89 . . . 8 . . . . Kinetic 9131 | . 41 . . . 73 536 48 667 1048 1357 2139 . . . . 483 . . . 1405 865 . . 469 . . . . . . . Thermal 37191 | . 25 263 . 47 402 2634 349 882 1137 1503 1538 116 691 238 226 4288 609 1356 3001 58 540 680 5191 2018 2300 . 3062 . 1019 1030 1988 Explosive 17417 | . . . . . 765 487 733 381 . . 57 . . . . . . . . . 2135 . 959 1142 3554 . 962 . 515 1017 4710 Electromagnetic 1901 | . . 266 . 12 16 . . . . 31 7 . . . . 354 . . . . 146 . 226 229 614 . . . . . . Impact . | . . . . . . . . . . . . . . . . . . . . . . . . . . . . . . . . Slashing 2392 | . . . . . . . . . . . . . . . . . . 621 . . 935 . 189 . . . . . . . 647 Piercing 49 | . . . . . . . . . . . . . . 49 . . . . . . . . . . . . . . . . . Highest Corruption 23 | . . . . . . . . . . . 1 1 1 1 1 11 . . 1 1 6 6 6 6 12 12 13 13 13 . 23 Average Corruption 6 | . . . . . . . . . . . 1 1 1 1 1 2 . . 1 1 5 6 2 5 11 12 12 13 13 . 6 Corruption Purged 16 | . . . . . . . . . . . . . . . . 11 . . . . . . 5 . . . . . . . . Corruption Blocked . | . . . . . . . . . . . . . . . . . . . . . . . . . . . . . . . . Effects 220 | . . . . . . . . . . . . 1 6 . 1 13 . . . 8 6 16 16 7 59 2 58 7 16 . 4 Message Errors 59 | . . . . . . . . . . . . . 4 . . 5 . . . 3 2 3 4 1 13 1 14 2 6 . 1 Matter Fused 42 | . . . . . . . . . . . . 1 . . . 4 . . . . 1 3 2 2 15 . 11 3 . . . Heat Flow Errors 29 | . . . . . . . . . . . . . . . 1 2 . . . 2 . 3 4 1 10 . 2 1 2 . 1 Energy Discharges 29 | . . . . . . . . . . . . . 1 . . 1 . . . 1 1 1 3 1 5 1 14 . . . . Parts Rejected 5 | . . . . . . . . . . . . . . . . . . . . . . . . 1 . . 3 . 1 . . Parts Fused 1 | . . . . . . . . . . . . . . . . . . . . . . . . . . . 1 . . . . Data Loss (minor) 23 | . . . . . . . . . . . . . 1 . . 1 . . . 1 . 6 2 . 3 . 5 . 3 . 1 Data Loss (major) 10 | . . . . . . . . . . . . . . . . . . . . . 1 . 1 1 4 . 2 1 . . . Misfires 10 | . . . . . . . . . . . . . . . . . . . . 1 1 . . . 4 . 2 . 2 . . Alerts 5 | . . . . . . . . . . . . . . . . . . . . . . . . . 3 . 1 . . . 1 Misdirections 3 | . . . . . . . . . . . . . . . . . . . . . . . . . 1 . 1 . 1 . . Weapon Failures 4 | . . . . . . . . . . . . . . . . . . . . . . . . . 1 . 2 . 1 . . Overload Shots 2 | . . . . . . . . . . . . . . . . 2 . . . . . . . . . . . . . . . Overflow Damage 1916 | . . . . . 37 7 . 3 56 27 47 34 . 11 23 302 . 420 2 267 256 . 166 51 36 . 28 . 3 . 140 Projectiles 806 | . . . . . . . . 3 56 25 8 34 . . 23 160 . 7 . 267 111 . 17 38 . . 28 . . . 29 Explosions 572 | . . . . . 37 7 . . . 2 39 . . 11 . 142 . . 2 . 39 . 130 13 36 . . . 3 . 111 Melee 538 | . . . . . . . . . . . . . . . . . . 413 . . 106 . 19 . . . . . . . . Knockbacks 51 | . . . . . . 7 . 7 8 2 . . . . . 6 . . . 6 5 . 1 9 . . . . . . . Impact 1 | . . . . . . . . . . . . . . . . . . . . . . . 1 . . . . . . . . Kinetic 50 | . . . . . . 7 . 7 8 2 . . . . . 6 . . . 6 5 . . 9 . . . . . . . Secondary . | . . . . . . . . . . . . . . . . . . . . . . . . . . . . . . . . Self-Inflicted Damage 723 | . . . . . 66 17 125 40 . . 154 . . 12 . 102 . . . . 13 . 94 . 25 . . . . . 75 Shots 27 | . . . . . 2 2 2 1 . . 3 . . 1 . 2 . . . . 1 . 10 . 1 . . . . . 2 Rammed 2 | . . . . . . . . . . . . . . . . . . . . . . . 1 . . . 1 . . . . Targets Rammed 4 | . . . . . . . . . . . . . . . . . . . . . 1 . 2 . . . 1 . . . . Kicked . | . . . . . . . . . . . . . . . . . . . . . . . . . . . . . . . . Crushed 2 | . . . . . . . . . . . . . . . . . . . . . 1 . 1 . . . . . . . . Highest Temperature 582 | . 89 105 . . 72 388 117 339 194 392 57 . 185 313 130 582 188 277 195 250 357 278 520 199 168 . 198 171 283 199 220 Average Temperature 84 | . 51 49 . . 37 86 43 92 52 101 17 . 88 146 55 84 88 148 106 53 94 95 106 101 59 . 98 78 108 80 68 Received Heat Transfer 5375 | . 30 234 . . 144 513 162 261 306 798 202 . 45 . . 265 24 240 45 9 121 . 339 178 269 . 108 . 57 27 998 Effects 21 | . . . . . . 1 . 2 . 2 . . . . . 5 . 1 . 1 2 . 7 . . . . . . . . Shutdowns 4 | . . . . . . 1 . . . 1 . . . . . 2 . . . . . . . . . . . . . . . Energy Bleed 4 | . . . . . . . . . . 1 . . . . . 1 . . . 1 . . 1 . . . . . . . . Interference 9 | . . . . . . . . 2 . . . . . . . . . 1 . . 2 . 4 . . . . . . . . Short Circuit 2 | . . . . . . . . . . . . . . . . . . . . . . . 2 . . . . . . . . Damage (minor) 1 | . . . . . . . . . . . . . . . . 1 . . . . . . . . . . . . . . . Damage (core) 1 | . . . . . . . . . . . . . . . . 1 . . . . . . . . . . . . . . . Siege Activations 2 | . . . . . . . . . . . . . . . . . . . . . . . . 2 . . . . . . . Total Turns 55 | . . . . . . . . . . . . . . . . . . . . . . . . 55 . . . . . . . Longest Duration 32 | . . . . . . . . . . . . . . . . . . . . . . . . 32 . . . . . . . Robots Corrupted 1 | . . . . . . . . . . . . . . . . . . . . . . . . . 1 . . . . . . Combat Hostiles 1 | . . . . . . . . . . . . . . . . . . . . . . . . . 1 . . . . . . Parts Fried 10 | . . . . . . . . . . . . . . . . . . . . . . . 3 3 3 . 1 . . . . Impact Corruptions 1 | . . . . . . . . . . . . . . . . . . . . . . . 1 . . . . . . . . Robots Melted 95 | . . . . . . 3 . 1 . 5 . . 2 4 . 6 1 1 19 1 2 6 38 . 2 . 3 . . . 1 Combat Hostiles 91 | . . . . . . 3 . 1 . 5 . . 2 4 . 6 1 1 19 1 1 6 36 . 2 . 2 . . . 1 Parts Melted 347 | . . 3 . . 4 9 1 5 2 14 2 . 5 17 . 37 8 6 55 3 11 22 122 . 8 . 9 . . 3 1 Heat Transferred 93644 | . 74 851 . 50 1099 8134 703 2056 1184 4107 1710 150 2150 1840 . 7989 2028 3453 16452 320 2560 3600 23037 1927 1915 . 2886 . 888 1110 1371 Parts Sabotaged . | . . . . . . . . . . . . . . . . . . . . . . . . . . . . . . . . Parts Stolen . | . . . . . . . . . . . . . . . . . . . . . . . . . . . . . . . . Parts Stripped . | . . . . . . . . . . . . . . . . . . . . . . . . . . . . . . . . Power Chain Reactions 3 | . . . . 1 1 . . . . . . . . . . . . . . . . . . . 1 . . . . . . Alert | -11 -10 -10 -10 -9 -8 -8 -8 -8 -7 -7 -6 -6 -6 -6 -5 -5 -5 -5 -5 -4 -4 -4 -4 -3 -3 -3 -3 -3 -3 -2 -2 ------- Run | Yrd Mat Min Exi Min Mat Gar Mat Gar Fac Gar Fac Low Low Dat Pro Fac Upp Upp War Pro Fac Was Fac Res Gar Res Gar Res DSF Res Tes Peak Influence 3324 | . 65 185 . 22 209 1521 1093 1472 1346 2115 1504 . . . . 733 . . . . 662 239 2919 1887 3324 1881 2661 1496 1453 1201 2300 Initial 1869 | . . 25 . . 8 101 741 710 772 897 1110 . . . . 31 . . . . 36 209 27 1532 1415 1869 1410 1496 1122 816 537 Average 1076 | . 47 75 . 21 59 917 828 1110 1116 1326 1103 . . . . 376 . . . . 219 181 1465 1602 2426 1873 2132 1496 1259 1098 1873 Maximum Alert Level 5 | . . . . . 1 4 3 4 4 5 4 . . . . 3 . . . . 2 1 5 5 5 5 5 4 4 4 5 Low Security (%) 17 | 100 100 100 . 100 93 3 . . . . . . . . . 30 . . . . 50 26 14 . . . . . . . . Level 1 7 | . . . . . 6 10 . . . . . . . . . 25 . . . . 24 73 7 . . . . . . . . Level 2 6 | . . . . . . 14 . . . . . . . . . 38 . . . . 25 . . . . . . . . . . Level 3 21 | . . . . . . 39 100 53 46 35 46 . . . . 5 . . . . . . 4 . . . . . . 57 . Level 4 25 | . . . . . . 31 . 46 53 33 53 . . . . . . . . . . . 16 70 5 . 15 100 100 42 . Level 5 19 | . . . . . . . . . . 30 . . . . . . . . . . . . 48 29 94 100 84 . . . . High Security . | . . . . . . . . . . . . . . . . . . . . . . . 7 . . . . . . . . Max Security 1 | . . . . . . . . . . . . . . . . . . . . . . . . . . . . . . . 99 Sterilizations 1 | . . . . . . . . . . . . . . . . . . . . . . . . . . . . . 1 . . Squads Dispatched 79 | . 1 . . . . . 3 . 7 . 5 . 1 . . 11 . . . . 7 . 19 4 . . . 2 . 3 16 Investigation 13 | . . . . . . . 1 . 3 . . . . . . 3 . . . . 3 . 2 . . . . 1 . . . Extermination 13 | . . . . . . . . . . . 4 . . . . 1 . . . . 3 . 3 2 . . . . . . . Reinforcement 15 | . 1 . . . . . . . 1 . . . . . . 6 . . . . . . 3 . . . . 1 . 3 . Assault 29 | . . . . . . . . . 2 . 1 . 1 . . . . . . . . . 10 2 . . . . . . 13 Garrison 9 | . . . . . . . 2 . 1 . . . . . . 1 . . . . 1 . 1 . . . . . . . 3 Intercept . | . . . . . . . . . . . . . . . . . . . . . . . . . . . . . . . . Searches Triggered . | . . . . . . . . . . . . . . . . . . . . . . . . . . . . . . . . Construction Impeded 5 | . . . . . . . . . 1 . . . . . . 1 . . . . . . 2 . . . . . . 1 . Haulers Reinforced 1 | . . . . . . . . . . . . . . . . 1 . . . . . . . . . . . . . . . Active Scanning Responses . | . . . . . . . . . . . . . . . . . . . . . . . . . . . . . . . . Cargo Convoy Interrupts 2 | . . . . . . . . . . . . . . . . 1 . . . . 1 . . . . . . . . . . Stealth | -11 -10 -10 -10 -9 -8 -8 -8 -8 -7 -7 -6 -6 -6 -6 -5 -5 -5 -5 -5 -4 -4 -4 -4 -3 -3 -3 -3 -3 -3 -2 -2 --------- Run | Yrd Mat Min Exi Min Mat Gar Mat Gar Fac Gar Fac Low Low Dat Pro Fac Upp Upp War Pro Fac Was Fac Res Gar Res Gar Res DSF Res Tes Distress Signals 25 | . . . . . 3 . 1 2 1 . 1 . . . . 1 . . 4 . 1 . 3 . . . . . . 8 . Communications Jammed 112 | . . . . . . . . . . . . . . . . . . . . . 13 . 79 . . . . . 3 . 17 Distress Signals 106 | . . . . . . . . . . . . . . . . . . . . . 13 . 76 . . . . . . . 17 Times Spotted 610 | . 4 7 . . 12 39 14 20 22 29 43 . 13 4 1 52 6 14 42 17 25 6 64 19 37 . 29 . 12 9 70 Peak Tracking Total 24 | . 2 3 . . 4 6 6 4 5 9 6 . 9 4 1 10 3 8 15 5 7 3 11 7 9 . 4 1 6 6 24 Tactical Retreats 36 | . . . . . . 6 . 1 1 . 3 . 2 . . 4 . 4 . 5 2 . 1 1 1 . . . 1 . 4 Traps | -11 -10 -10 -10 -9 -8 -8 -8 -8 -7 -7 -6 -6 -6 -6 -5 -5 -5 -5 -5 -4 -4 -4 -4 -3 -3 -3 -3 -3 -3 -2 -2 ------- Run | Yrd Mat Min Exi Min Mat Gar Mat Gar Fac Gar Fac Low Low Dat Pro Fac Upp Upp War Pro Fac Was Fac Res Gar Res Gar Res DSF Res Tes Traps Triggered 43 | . . . . . . 8 1 6 2 9 2 . . . . 4 . . . . 3 . 1 . 6 . . . 1 . . Indirectly . | . . . . . . . . . . . . . . . . . . . . . . . . . . . . . . . . Trap Hack Attempts . | . . . . . . . . . . . . . . . . . . . . . . . . . . . . . . . . Triggered . | . . . . . . . . . . . . . . . . . . . . . . . . . . . . . . . . Disarmed . | . . . . . . . . . . . . . . . . . . . . . . . . . . . . . . . . Reprogrammed . | . . . . . . . . . . . . . . . . . . . . . . . . . . . . . . . . Reused . | . . . . . . . . . . . . . . . . . . . . . . . . . . . . . . . . Traps Extracted . | . . . . . . . . . . . . . . . . . . . . . . . . . . . . . . . . Installed . | . . . . . . . . . . . . . . . . . . . . . . . . . . . . . . . . Triggered 12 | . . . . . . . . . . . . . . . . . . . 10 . 2 . . . . . . . . . . Machines | -11 -10 -10 -10 -9 -8 -8 -8 -8 -7 -7 -6 -6 -6 -6 -5 -5 -5 -5 -5 -4 -4 -4 -4 -3 -3 -3 -3 -3 -3 -2 -2 ---------- Run | Yrd Mat Min Exi Min Mat Gar Mat Gar Fac Gar Fac Low Low Dat Pro Fac Upp Upp War Pro Fac Was Fac Res Gar Res Gar Res DSF Res Tes Machines Disabled 107 | . . 3 . 1 2 7 3 6 8 9 8 . 1 . . 16 . . . . 2 . 19 4 8 . 7 . 1 2 . Max in Single Turn 6 | . . 1 . 1 1 1 1 1 1 1 3 . 1 . . 6 . . . . 2 . 6 1 2 . 1 . 1 1 . Garrison Access 9 | . . . . . . . . . 2 . 1 . . . . 2 . . . . . . 1 . . . . . . 3 . Garrison Relay 22 | . . . . . . 5 . 3 . 6 . . . . . . . . . . . . . . 4 . 4 . . . . Phase Generator 1 | . . . . . . . . . . . . . . . . . . . . . . . . . 1 . . . . . . Machines Repaired . | . . . . . . . . . . . . . . . . . . . . . . . . . . . . . . . . Machines Dismantled . | . . . . . . . . . . . . . . . . . . . . . . . . . . . . . . . . Machines Sabotaged . | . . . . . . . . . . . . . . . . . . . . . . . . . . . . . . . . Overloaded Fab Kills . | . . . . . . . . . . . . . . . . . . . . . . . . . . . . . . . . Hacking | -11 -10 -10 -10 -9 -8 -8 -8 -8 -7 -7 -6 -6 -6 -6 -5 -5 -5 -5 -5 -4 -4 -4 -4 -3 -3 -3 -3 -3 -3 -2 -2 --------- Run | Yrd Mat Min Exi Min Mat Gar Mat Gar Fac Gar Fac Low Low Dat Pro Fac Upp Upp War Pro Fac Was Fac Res Gar Res Gar Res DSF Res Tes Machines Accessed 81 | . . . 2 1 5 4 5 2 5 3 8 . . 4 . 8 . 2 5 1 11 . 5 4 3 1 . 2 . . . Terminals 43 | . . . . . 4 4 4 2 2 3 5 . . . . 4 . 1 . 1 3 . 4 1 3 . . 2 . . . Fabricators 6 | . . . . . . . . . . . 1 . . . . 2 . . . . 1 . 1 1 . . . . . . . Repair Stations 2 | . . . . . . . . . 1 . . . . . . . . . . . 1 . . . . . . . . . . Recycling Units 5 | . . . . . . . . . . . 1 . . . . . . . . . 3 . . 1 . . . . . . . Scanalyzers 2 | . . . . . . . . . . . . . . . . . . . . . 2 . . . . . . . . . . Garrison Access 10 | . . . . . 1 . 1 . 2 . 1 . . . . 2 . . . . 1 . . 1 . 1 . . . . . Total Hacks 207 | . . . 2 1 18 5 15 3 12 4 15 . . 32 . 21 . 2 11 1 34 . 12 8 6 2 . 3 . . . Successful 126 | . . . 2 1 10 4 9 2 4 3 4 . . 32 . 13 . 2 11 1 15 . 6 4 1 1 . 1 . . . Failed 81 | . . . . . 8 1 6 1 8 1 11 . . . . 8 . . . . 19 . 6 4 5 1 . 2 . . . Catastrophic 13 | . . . . . 1 1 . . 1 . 4 . . . . 1 . . . . 3 . . 1 . . . 1 . . . Database Lockouts . | . . . . . . . . . . . . . . . . . . . . . . . . . . . . . . . . Manual 48 | . . . 1 . 8 . 8 . 2 . 10 . . . . 5 . . 1 . 6 . 2 3 . . . 2 . . . Terminals 95 | . . . . . 16 5 14 3 4 4 9 . . . . 10 . 1 . 1 7 . 10 2 6 . . 3 . . . Fabricators 23 | . . . . . . . . . . . 3 . . . . 9 . . . . 6 . 2 3 . . . . . . . Repair Stations 8 | . . . . . . . . . 2 . . . . . . . . . . . 6 . . . . . . . . . . Recycling Units 13 | . . . . . . . . . . . 2 . . . . . . . . . 9 . . 2 . . . . . . . Scanalyzers 4 | . . . . . . . . . . . . . . . . . . . . . 4 . . . . . . . . . . Garrison Access 17 | . . . . . 2 . 1 . 6 . 1 . . . . 2 . . . . 2 . . 1 . 2 . . . . . Terminal Hacks 79 | . . . 2 1 6 4 4 2 1 3 . . . 32 . 5 . 2 11 1 1 . 2 . 1 . . 1 . . . Record 25 | . . . 1 . . . . . . . . . . 11 . . . 1 11 1 . . . . . . . . . . . Part Schematic 14 | . . . . . . . . . . . . . . 12 . 1 . . . . . . 1 . . . . . . . . Robot Schematic 7 | . . . . . . . . . 1 . . . . 6 . . . . . . . . . . . . . . . . . Robot Analysis 5 | . . . . . 3 . 2 . . . . . . . . . . . . . . . . . . . . . . . . Prototype ID Bank 5 | . . . . . . . 2 . . . . . . 3 . . . . . . . . . . . . . . . . . Open Door 4 | . . . . 1 . 1 . . . . . . . . . . . 1 . . . . . . 1 . . . . . . Open DSF 1 | . . . . . . . . . . . . . . . . . . . . . . . . . . . . 1 . . . Emergency Access Points 3 | . . . . . . 1 . 1 . 1 . . . . . . . . . . . . . . . . . . . . . Garrison Index 1 | . . . . . . . . . . . . . . . . . . . . . 1 . . . . . . . . . . Locate Traps 4 | . . . . . 1 . . . . . . . . . . 2 . . . . . . 1 . . . . . . . . Dispatch Records 1 | . . . . . 1 . . . . . . . . . . . . . . . . . . . . . . . . . . Hauler Manifests 1 | . . . . . . . . . . . . . . . . 1 . . . . . . . . . . . . . . . Zone Layout 2 | . . . . . 1 . . . . . . . . . . 1 . . . . . . . . . . . . . . . Patrol Navigation 2 | . . . . . . 1 . . . 1 . . . . . . . . . . . . . . . . . . . . . Security Stations 3 | . . . . . . 1 . 1 . 1 . . . . . . . . . . . . . . . . . . . . . Derelict Proto ID Bank 1 | . . . 1 . . . . . . . . . . . . . . . . . . . . . . . . . . . . Fabricator Hacks 9 | . . . . . . . . . . . . . . . . 3 . . . . 3 . 2 1 . . . . . . . Network Status 2 | . . . . . . . . . . . . . . . . 1 . . . . 1 . . . . . . . . . . Load Schematic 4 | . . . . . . . . . . . . . . . . 2 . . . . 1 . 1 . . . . . . . . Build 3 | . . . . . . . . . . . . . . . . . . . . . 1 . 1 1 . . . . . . . Repair Station Hacks 3 | . . . . . . . . . 2 . . . . . . . . . . . 1 . . . . . . . . . . Scan Component 2 | . . . . . . . . . 1 . . . . . . . . . . . 1 . . . . . . . . . . Repair 1 | . . . . . . . . . 1 . . . . . . . . . . . . . . . . . . . . . . Recycling Unit Hacks 6 | . . . . . . . . . . . . . . . . . . . . . 5 . . 1 . . . . . . . Process 1 | . . . . . . . . . . . . . . . . . . . . . 1 . . . . . . . . . . Report Inventory 2 | . . . . . . . . . . . . . . . . . . . . . 2 . . . . . . . . . . Retrieve Matter 2 | . . . . . . . . . . . . . . . . . . . . . 2 . . . . . . . . . . Retrieve Components 1 | . . . . . . . . . . . . . . . . . . . . . . . . 1 . . . . . . . Scanalyzer 2 | . . . . . . . . . . . . . . . . . . . . . 2 . . . . . . . . . . Insert Component 2 | . . . . . . . . . . . . . . . . . . . . . 2 . . . . . . . . . . Garrison Access Hacks 8 | . . . . . 1 . 1 . 1 . 1 . . . . 2 . . . . . . . 1 . 1 . . . . . Unlock Access 5 | . . . . . 1 . 1 . 1 . . . . . . . . . . . . . . 1 . 1 . . . . . Seal Access 3 | . . . . . . . . . . . 1 . . . . 2 . . . . . . . . . . . . . . . Unauthorized Hacks 19 | . . . . . 3 . 4 . . . 3 . . . . 3 . . . . 3 . 2 1 . . . . . . . Terminals 15 | . . . . . 3 . 4 . . . 2 . . . . 2 . . . . 1 . 2 1 . . . . . . . Track 1 | . . . . . . . 1 . . . . . . . . . . . . . . . . . . . . . . . . Assimilate 1 | . . . . . . . . . . . 1 . . . . . . . . . . . . . . . . . . . . Botnet 11 | . . . . . 3 . 2 . . . 1 . . . . 2 . . . . 1 . 1 1 . . . . . . . Disrupt 2 | . . . . . . . 1 . . . . . . . . . . . . . . . 1 . . . . . . . . Fabricators 3 | . . . . . . . . . . . 1 . . . . 1 . . . . 1 . . . . . . . . . . Haulers 3 | . . . . . . . . . . . 1 . . . . 1 . . . . 1 . . . . . . . . . . Repair Stations . | . . . . . . . . . . . . . . . . . . . . . . . . . . . . . . . . Recycling Units 1 | . . . . . . . . . . . . . . . . . . . . . 1 . . . . . . . . . . Recyclers 1 | . . . . . . . . . . . . . . . . . . . . . 1 . . . . . . . . . . Scanalyzers . | . . . . . . . . . . . . . . . . . . . . . . . . . . . . . . . . Garrison Access . | . . . . . . . . . . . . . . . . . . . . . . . . . . . . . . . . Data Cores Recovered . | . . . . . . . . . . . . . . . . . . . . . . . . . . . . . . . . Used . | . . . . . . . . . . . . . . . . . . . . . . . . . . . . . . . . Hacking Detections 57 | . . . . . 4 4 3 2 4 2 7 . . . . 6 . 1 . 1 11 . 5 3 2 1 . 1 . . . Full Trace Events 11 | . . . . . . . . . 2 . . . . . . 3 . . . . 3 . 2 . . . . 1 . . . Feedback Events . | . . . . . . . . . . . . . . . . . . . . . . . . . . . . . . . . Feedback Blocked . | . . . . . . . . . . . . . . . . . . . . . . . . . . . . . . . . Robot Schematics Acquired 7 | . . . . . . . . . 1 . . . . 6 . . . . . . . . . . . . . . . . . Robots Built . | . . . . . . . . . . . . . . . . . . . . . . . . . . . . . . . . Authchips . | . . . . . . . . . . . . . . . . . . . . . . . . . . . . . . . . Time . | . . . . . . . . . . . . . . . . . . . . . . . . . . . . . . . . Total Robot Build Rating . | . . . . . . . . . . . . . . . . . . . . . . . . . . . . . . . . Part Schematics Acquired 14 | . . . . . . . . . . . . . . 12 . 1 . . . . . . 1 . . . . . . . . Parts Built 5 | . . . . . . . . . . . . . . . . . . . . . 2 . 1 2 . . . . . . . Authchips . | . . . . . . . . . . . . . . . . . . . . . . . . . . . . . . . . Time 255 | . . . . . . . . . . . . . . . . . . . . . 117 . 69 69 . . . . . . . Total Part Build Rating 41 | . . . . . . . . . . . . . . . . . . . . . 14 . 9 18 . . . . . . . Parts Repaired 1 | . . . . . . . . . 1 . . . . . . . . . . . . . . . . . . . . . . Time 44 | . . . . . . . . . 44 . . . . . . . . . . . . . . . . . . . . . . Parts Recycled . | . . . . . . . . . . . . . . . . . . . . . . . . . . . . . . . . Recycled Matter 185 | . . . . . . . . . . . . . . . . . . . . . 185 . . . . . . . . . . Retrieved Matter 219 | . . . . . . . . . . . . . . . . . . . . . 219 . . . . . . . . . . Retrieved Components 10 | . . . . . . . . . . . . . . . . . . . . . . . . 10 . . . . . . . Parts Scanalyzed . | . . . . . . . . . . . . . . . . . . . . . . . . . . . . . . . . Part Schematics Acquired . | . . . . . . . . . . . . . . . . . . . . . . . . . . . . . . . . Parts Damaged . | . . . . . . . . . . . . . . . . . . . . . . . . . . . . . . . . Bothacking | -11 -10 -10 -10 -9 -8 -8 -8 -8 -7 -7 -6 -6 -6 -6 -5 -5 -5 -5 -5 -4 -4 -4 -4 -3 -3 -3 -3 -3 -3 -2 -2 ------------ Run | Yrd Mat Min Exi Min Mat Gar Mat Gar Fac Gar Fac Low Low Dat Pro Fac Upp Upp War Pro Fac Was Fac Res Gar Res Gar Res DSF Res Tes Used RIF Installer . | . . . . . . . . . . . . . . . . . . . . . . . . . . . . . . . . Robots Hacked . | . . . . . . . . . . . . . . . . . . . . . . . . . . . . . . . . Non-combat . | . . . . . . . . . . . . . . . . . . . . . . . . . . . . . . . . Combat . | . . . . . . . . . . . . . . . . . . . . . . . . . . . . . . . . Robot Hacks Applied . | . . . . . . . . . . . . . . . . . . . . . . . . . . . . . . . . Relay Couplers Released 98 | . . . . . . 19 . 12 5 25 . . . . . . . . . . . . 4 . 17 . 15 . . 1 . Machine Destruction 95 | . . . . . . 19 . 12 5 25 . . . . . . . . . . . . 1 . 17 . 15 . . 1 . Programmers 3 | . . . . . . . . . . . . . . . . . . . . . . . 3 . . . . . . . . Fabnet Peak Effective % . | . . . . . . . . . . . . . . . . . . . . . . . . . . . . . . . . Robots Rewired 21 | . . . . . . 2 . . . . . . 2 . . . . . 5 . 1 . . . 11 . . . . . . Allies Hacked 1 | . . . . . . . . . . . . . . . . . . . . . . . 1 . . . . . . . . Hacks Repelled . | . . . . . . . . . . . . . . . . . . . . . . . . . . . . . . . . Allies | -11 -10 -10 -10 -9 -8 -8 -8 -8 -7 -7 -6 -6 -6 -6 -5 -5 -5 -5 -5 -4 -4 -4 -4 -3 -3 -3 -3 -3 -3 -2 -2 -------- Run | Yrd Mat Min Exi Min Mat Gar Mat Gar Fac Gar Fac Low Low Dat Pro Fac Upp Upp War Pro Fac Was Fac Res Gar Res Gar Res DSF Res Tes Total Allies 52 | . . . . . . 2 . . . . 1 . 2 . . . . . 5 . 1 18 12 . 11 . . . . . . Largest Group 18 | . . . . . . 2 2 . . . 1 . 2 2 . . . . 5 . 1 18 18 . 6 2 2 . . . . Highest-Rated Group 656 | . . . . . . 62 62 . . . 26 . 59 59 . . . . 234 . 47 656 656 . 253 178 178 . . . . Highest-Rated Ally 89 | . . . . . . 31 31 . . . 26 . 30 30 . . . . 49 . 47 50 50 . 89 89 89 . . . . Warlord Squad Rendezvous 3 | . . . . . . . . . . . . . . . . 3 . . . . . . . . . . . . . . . Dakka 1 | . . . . . . . . . . . . . . . . 1 . . . . . . . . . . . . . . . Muscle 1 | . . . . . . . . . . . . . . . . 1 . . . . . . . . . . . . . . . Ghost 1 | . . . . . . . . . . . . . . . . 1 . . . . . . . . . . . . . . . Total Orders 6 | . . . . . . 2 . . . . . . . 1 . . . . 3 . . . . . . . . . . . . STAY 1 | . . . . . . . . . . . . . . 1 . . . . . . . . . . . . . . . . . EXPLORE 3 | . . . . . . . . . . . . . . . . . . . 3 . . . . . . . . . . . . RETURN 2 | . . . . . . 2 . . . . . . . . . . . . . . . . . . . . . . . . . Ally Attacks 510 | . . . . . . 10 4 . . . . . 1 3 . . . 6 75 . 11 . 273 . 83 . 44 . . . . Total Damage 12225 | . . . . . . 78 42 . . . . . 19 40 . . . 29 1906 . 273 . 6736 . 1949 . 1153 . . . . Kills 81 | . . . . . . 1 . . . . . . 1 . . . . . 12 . 2 . 41 . 13 . 11 . . . . Allies Corrupted 3 | . . . . . . . . . . . . . . . . . . . 1 . . . 2 . . . . . . . . Allies Melted 2 | . . . . . . . . . . . . . . . . . . . . . . . 1 . . . . . . 1 . Intel | -11 -10 -10 -10 -9 -8 -8 -8 -8 -7 -7 -6 -6 -6 -6 -5 -5 -5 -5 -5 -4 -4 -4 -4 -3 -3 -3 -3 -3 -3 -2 -2 ------- Run | Yrd Mat Min Exi Min Mat Gar Mat Gar Fac Gar Fac Low Low Dat Pro Fac Upp Upp War Pro Fac Was Fac Res Gar Res Gar Res DSF Res Tes Robot Analysis Total 4 | . . . . . 3 . 1 . . . . . . . . . . . . . . . . . . . . . . . . Derelict Logs Recovered 10 | . . 1 . 1 . . . . . . . 1 1 . 1 . 1 2 . 2 . . . . . . . . . . . Drone Launches 21 | . . . . . . 6 . . . . . . . . . . . 6 9 . . . . . . . . . . . . Drone Recoveries 17 | . . . . . . 6 . . . . . . . . . . . 5 6 . . . . . . . . . . . . Exploration | -11 -10 -10 -10 -9 -8 -8 -8 -8 -7 -7 -6 -6 -6 -6 -5 -5 -5 -5 -5 -4 -4 -4 -4 -3 -3 -3 -3 -3 -3 -2 -2 ------------- Run | Yrd Mat Min Exi Min Mat Gar Mat Gar Fac Gar Fac Low Low Dat Pro Fac Upp Upp War Pro Fac Was Fac Res Gar Res Gar Res DSF Res Tes Turns Passed 27954 | 45 83 839 265 301 639 1734 369 1423 1081 2100 2036 362 392 196 327 1637 540 1595 1057 1259 2030 546 1261 674 1608 39 1433 177 348 1214 344 Spaces Moved 15550 | 39 55 679 245 269 381 942 234 635 594 823 1254 305 305 154 275 997 430 777 532 469 931 306 714 316 826 24 712 101 172 897 157 Core 27 | 6 . . . . . . . . . 18 . . . . . . . . . . . . . . . . . . . . 3 Treads 4384 | . . . . . . . . 51 . 1 . . . . . . . 112 532 469 245 256 714 316 826 24 712 101 25 . . Legs 1970 | . . . . . . . . . . 675 97 . . . . . . . . . . . . . . . . . 147 897 154 Wheels 9169 | 33 55 679 245 269 381 942 234 584 594 129 1157 305 305 154 275 997 430 665 . . 686 50 . . . . . . . . . Hover . | . . . . . . . . . . . . . . . . . . . . . . . . . . . . . . . . Flight . | . . . . . . . . . . . . . . . . . . . . . . . . . . . . . . . . Fastest Speed 50 | 50 90 105 105 105 105 100 105 120 120 50 115 115 115 115 115 105 115 140 160 160 128 128 150 148 148 154 154 160 120 120 100 Average Speed 143 | 83 96 105 105 105 112 117 117 173 130 203 126 115 115 115 115 113 115 184 174 250 174 154 154 154 151 154 157 160 126 120 119 Slowest Speed 400 | 90 105 145 105 105 145 140 120 400 195 330 260 115 115 115 115 150 120 253 260 255 260 160 160 155 154 154 160 160 260 120 120 Overloaded Moves . | . . . . . . . . . . . . . . . . . . . . . . . . . . . . . . . . Propulsion Burnouts . | . . . . . . . . . . . . . . . . . . . . . . . . . . . . . . . . Robots Hopped . | . . . . . . . . . . . . . . . . . . . . . . . . . . . . . . . . Cave-ins Triggered . | . . . . . . . . . . . . . . . . . . . . . . . . . . . . . . . . Exploration Rate (%) 49 | 3 10 97 60 55 32 93 28 78 18 86 29 51 46 78 51 27 63 83 90 57 29 96 24 10 93 1 53 3 88 32 23 Regions Visited 31 Branch Regions 12 Pre-discovered Areas 3 | . . . 1 . . . . . . . . 1 . 1 . . . . . . . . . . . . . . . . . Known Exits Taken 18 | . 1 . . . 1 . 1 . 1 . 1 1 1 1 1 1 1 1 1 1 . . 1 1 . 1 . 1 . . . Unknown Exits Taken 5 | 1 . 1 1 1 . . . . . . . . . . . . . . . . . . . . . . . . . 1 . Scrap Searched 15 | . . 1 . . . . . . . . . 2 . . 1 . 3 4 . 4 . . . . . . . . . . . Spaces Dug 83 | . . . . . . . . . 4 6 7 . . . . 13 . . . . 8 . . 3 4 . 13 . 4 13 8 Terrain Destroyed 1167 | . . . . 2 49 21 51 9 35 19 109 3 3 . . 140 1 3 5 13 83 . 94 39 288 . 70 . 51 49 30 Melee 2 | . . . . . . . . . . . . . . . . . . . . . 2 . . . . . . . . . . Projectile 259 | . . . . . . . . 2 35 19 18 3 3 . . 32 1 3 . 13 14 . . 8 30 . 37 . 17 15 9 AOE 906 | . . . . 2 49 21 51 7 . . 91 . . . . 108 . . 5 . 67 . 94 31 258 . 33 . 34 34 21 Terrain Rammed . | . . . . . . . . . . . . . . . . . . . . . . . . . . . . . . . . Walls Destroyed . | . . . . . . . . . . . . . . . . . . . . . . . . . . . . . . . . Machines Disabled . | . . . . . . . . . . . . . . . . . . . . . . . . . . . . . . . . Actions | -11 -10 -10 -10 -9 -8 -8 -8 -8 -7 -7 -6 -6 -6 -6 -5 -5 -5 -5 -5 -4 -4 -4 -4 -3 -3 -3 -3 -3 -3 -2 -2 --------- Run | Yrd Mat Min Exi Min Mat Gar Mat Gar Fac Gar Fac Low Low Dat Pro Fac Upp Upp War Pro Fac Was Fac Res Gar Res Gar Res DSF Res Tes Total 19339 | 51 73 734 252 284 540 1364 284 840 784 1096 1525 311 331 169 278 1328 452 864 654 522 1253 383 866 432 1080 26 926 115 270 1005 247 Wait 1153 | . 1 14 . 11 75 157 5 27 79 61 82 . 3 . . 135 . 10 1 6 170 32 77 22 28 1 68 7 48 27 6 Move 15520 | 38 54 678 244 268 380 941 233 634 593 822 1253 304 304 153 274 996 429 776 531 468 931 305 713 315 825 23 711 100 171 896 157 Hop . | . . . . . . . . . . . . . . . . . . . . . . . . . . . . . . . . Pick Up 287 | 8 5 6 6 1 16 18 4 21 8 35 17 2 . 2 . 18 2 9 13 4 16 7 7 19 17 . 10 1 4 7 4 Fast Attach 119 | . . . . . 3 7 1 1 6 8 12 . 2 2 . 6 1 3 8 2 12 4 4 3 2 1 13 2 6 10 . Attach 228 | 5 3 2 . . 7 17 3 20 2 23 8 . 3 1 . 20 2 12 6 3 18 5 6 18 13 . 6 . 5 6 14 Detach 63 | . 1 . . . . 5 . 5 . 4 2 . 2 2 . 7 1 4 4 . 4 3 1 4 3 . 2 . 1 4 4 Swap 181 | . 3 . 1 3 14 10 5 14 15 10 20 . . 2 1 21 2 5 7 1 6 6 3 3 7 . 6 1 3 9 3 Drop 256 | . . . 1 . 9 18 4 7 14 8 22 2 2 3 . 16 3 3 24 6 20 14 9 9 15 1 19 3 6 16 2 Fire 1206 | . 6 34 . 1 36 146 29 71 59 95 109 3 10 3 3 101 12 34 13 32 43 7 44 39 88 . 90 1 26 30 41 Melee 48 | . . . . . . . . . . . . . . 1 . . . 8 . . 25 . . . . . . . . . 14 Ram . | . . . . . . . . . . . . . . . . . . . . . . . . . . . . . . . . Kick . | . . . . . . . . . . . . . . . . . . . . . . . . . . . . . . . . Crush 4 | . . . . . . . . . . . . . . . . . . . . . 1 . 2 . . . 1 . . . . Escape Stasis 125 | . . . . . . 35 . 40 8 30 . . . . . 8 . . . . 2 . . . . . . . . . 2 Rewire 149 | . . . . . . 10 . . . . . . 5 . . . . . 47 . 5 . . . 82 . . . . . . Trap . | . . . . . . . . . . . . . . . . . . . . . . . . . . . . . . . . Miscellaneous . | . . . . . . . . . . . . . . . . . . . . . . . . . . . . . . . . Route ------- -11/Scrapyard -10/Materials -10/Mines (discovered 3 exits: [*Mat x2] / *Exi) -10/Exiles -9/Mines -8/Materials (discovered 2 exits: Fac / Gar) -8/Garrison (discovered 4 exits: *Mat x4) -8/Materials (discovered 2 exits: *Fac / Gar) -8/Garrison (discovered 3 exits: *Fac x3) -7/Factory (discovered 2 exits: *Fac / Gar) -7/Garrison (discovered 3 exits: *Fac x3) -6/Factory (discovered 2 exits: *Fac / *Low) -6/Lower Caves -6/Lower Caves (discovered 2 exits: *Fac / *Dat) -6/Data Miner -5/Proximity Caves -5/Factory (discovered 3 exits: *Fac / *Upp x2) -5/Upper Caves -5/Upper Caves (discovered 2 exits: *Fac / *War) -5/Warlord -4/Proximity Caves -4/Factory (discovered 3 exits: *Res / *Upp x2) -4/Waste -4/Factory (discovered 2 exits: *Res / *Upp) -3/Research (discovered 2 exits: Qua / Gar) -3/Garrison (discovered 3 exits: *Res x3) -3/Research -3/Garrison (discovered 3 exits: *Res x3) -3/Research -3/DSF -2/Research -2/Testing (discovered 1 exit: Acc) History --------- Turn | Location | Event 24 | -11/Scrapyard | Discovered new exit (range 15) 46 | -11/Scrapyard | Entered Materials 66 | -10/Materials | Discovered new exit (range 4) 127 | -10/Materials | Identified exit to Mines 129 | -10/Materials | Entered Mines 151 | -10/Mines | Discovered new exit (range 8) 177 | -10/Mines | Learned Materials trap positions 301 | -10/Mines | Build established: Mutant 394 | -10/Mines | Discovered new exit (range 8) 491 | -10/Mines | Core integrity fell below 50% 964 | -10/Mines | Deemed a non-threat by the Exiles lab entrance 964 | -10/Mines | Discovered new exit (range 5) 968 | -10/Mines | Entered Exiles 994 | -10/Exiles | Met 8R-AWN 1036 | -10/Exiles | Met EX-HEX 1067 | -10/Exiles | Met EX-BIN 1080 | -10/Exiles | Aligned with FarCom system 1081 | -10/Exiles | Given EX-Vault access code 1105 | -10/Exiles | Opened EX-Vault 1110 | -10/Exiles | Found Firepult 1130 | -10/Exiles | Warned to stay clear of 0b10 Research branches 1149 | -10/Exiles | Exiles lab attacked by MAIN.C 1167 | -10/Exiles | Learned location of Zion (-7) 1220 | -10/Exiles | Discovered new exit (range 14) 1233 | -10/Exiles | Left Exiles lab with Firepult 1233 | -10/Exiles | Entered Mines 1277 | -9/Mines | Learned location of 1 exit from Materials 1394 | -9/Mines | Found the Drone Emporium 1401 | -9/Mines | Found Prototype Device 1402 | -9/Mines | Identified Splice Drone Bay 1495 | -9/Mines | Discovered new exit (range 13) 1534 | -9/Mines | Entered Materials 1534 | -8/Materials | Evolved 4 slots: Power x1, Utility x3 1535 | -8/Materials | Identified exit to Factory 1536 | -8/Materials | Loaded intel: 23 trap records 1730 | -8/Materials | Lost 3 parts (1n2w) 1906 | -8/Materials | Build established: Scavenger-Skirmisher 2172 | -8/Materials | Identified exit to Garrison 2173 | -8/Materials | Entered Garrison 2265 | -8/Garrison | Triggered checkpoint 2296 | -8/Garrison | Garrison Relay disabled 2431 | -8/Garrison | Triggered checkpoint 2464 | -8/Garrison | Triggered checkpoint 2546 | -8/Garrison | Triggered checkpoint 2571 | -8/Garrison | Build established: Scavenger-Mutant 2683 | -8/Garrison | Learned Materials security intel 2690 | -8/Garrison | Discovered new exit (range 10) 2766 | -8/Garrison | Triggered checkpoint 2937 | -8/Garrison | Triggered checkpoint 3111 | -8/Garrison | Garrison Relay disabled 3141 | -8/Garrison | Discovered new exit (range 8) 3304 | -8/Garrison | Discovered new exit (range 3) 3329 | -8/Garrison | Triggered checkpoint 3366 | -8/Garrison | Garrison Relay disabled 3581 | -8/Garrison | Garrison Relay disabled 3701 | -8/Garrison | Triggered checkpoint 3723 | -8/Garrison | Discovered new exit (range 5) 3907 | -8/Garrison | Entered Materials 3907 | -8/Materials | Accompanied by 2 allies 4074 | -8/Materials | Discovered exit to Factory (range 16) 4147 | -8/Materials | Garrison activated, responded to threat 4188 | -8/Materials | Core integrity fell below 50% 4271 | -8/Materials | Identified exit to Garrison 4276 | -8/Materials | Entered Garrison 4375 | -8/Garrison | Garrison Relay disabled 4474 | -8/Garrison | Triggered checkpoint 4509 | -8/Garrison | Destroyed 9 combat bots 4514 | -8/Garrison | Lost 6 parts (1p2n2u1w) 4623 | -8/Garrison | Garrison Relay disabled 4721 | -8/Garrison | Discovered exit to Factory (range 15) 4836 | -8/Garrison | Triggered checkpoint 4995 | -8/Garrison | Discovered exit to Factory (range 10) 5035 | -8/Garrison | Triggered checkpoint 5060 | -8/Garrison | Garrison Relay disabled 5212 | -8/Garrison | Triggered checkpoint 5450 | -8/Garrison | Learned Factory security intel 5463 | -8/Garrison | Discovered exit to Factory (range 14) 5530 | -8/Garrison | Core integrity fell below 20% 5575 | -8/Garrison | Lost 7 parts (2p1n3u1w) 5699 | -8/Garrison | Entered Factory 5699 | -7/Factory | Evolved 2 slots: Propulsion x1, Utility x1 5785 | -7/Factory | Garrison activated, responded to threat 6120 | -7/Factory | Repaired Broken Arm. Wheel 6220 | -7/Factory | Build established: Mutant 6640 | -7/Factory | Build established: Scavenger-Mutant 6687 | -7/Factory | Discovered new exit (range 15) 6740 | -7/Factory | Identified exit to Garrison 6780 | -7/Factory | Entered Garrison 6981 | -7/Garrison | Triggered checkpoint 7030 | -7/Garrison | Lost 9 parts (2p4n1u2w) 7055 | -7/Garrison | Core integrity fell below 50% 7095 | -7/Garrison | Build established: Mutant 7254 | -7/Garrison | Garrison Relay disabled 7395 | -7/Garrison | Build established: Scavenger-Mutant 7586 | -7/Garrison | Triggered checkpoint 7667 | -7/Garrison | Discovered new exit (range 12) 7734 | -7/Garrison | Triggered checkpoint 7766 | -7/Garrison | Garrison Relay disabled 7827 | -7/Garrison | Learned Factory security intel 7998 | -7/Garrison | Triggered checkpoint 8018 | -7/Garrison | Triggered checkpoint 8072 | -7/Garrison | Lost 4 parts (2n1u1w) 8076 | -7/Garrison | Destroyed 8 combat bots 8094 | -7/Garrison | Triggered checkpoint 8206 | -7/Garrison | Triggered checkpoint 8232 | -7/Garrison | Garrison Relay disabled 8277 | -7/Garrison | Discovered new exit (range 15) 8578 | -7/Garrison | Spotted B-75 Beast 8587 | -7/Garrison | Destroyed B-75 Beast 8683 | -7/Garrison | Discovered new exit (range 9) 8748 | -7/Garrison | Triggered checkpoint 8795 | -7/Garrison | Garrison Relay disabled 8819 | -7/Garrison | Garrison Relay disabled 8821 | -7/Garrison | Garrison Relay disabled 8880 | -7/Garrison | Entered Factory 8880 | -6/Factory | Evolved 2 slots: Propulsion x1, Utility x1 9447 | -6/Factory | Build established: Mutant 9580 | -6/Factory | First assault squad dispatched 9611 | -6/Factory | Discovered new exit (range 9) 9989 | -6/Factory | Discovered new exit (range 15) 10454 | -6/Factory | Lost 3 parts (1p1u1w) 10894 | -6/Factory | Identified exit to Lower Caves 10916 | -6/Factory | Entered Lower Caves 10922 | -6/Lower Caves | Met a Warlord Commander 10923 | -6/Lower Caves | Learned location of Warlord (-5) 10924 | -6/Lower Caves | Warlord Commander delivered Encrypted Comm Array 10939 | -6/Lower Caves | Found Encrypted Comm Array 11263 | -6/Lower Caves | Discovered new exit (range 13) 11277 | -6/Lower Caves | Identified exit to Lower Caves 11278 | -6/Lower Caves | Entered another Lower Caves area 11281 | -6/Lower Caves | Discovered new exit (range 15) 11297 | -6/Lower Caves | Identified exit to Factory 11342 | -6/Lower Caves | Learned Factory stockpile data 11434 | -6/Lower Caves | Attracted the attention of an 0b10 outpost 11478 | -6/Lower Caves | Destroyed 9 combat bots 11566 | -6/Lower Caves | Discovered new exit (range 3) 11568 | -6/Lower Caves | Identified exit to Data Miner 11606 | -6/Lower Caves | Core integrity fell below 50% 11670 | -6/Lower Caves | Entered Data Miner 11670 | -6/Data Miner | Accompanied by 2 allies 11670 | -6/Data Miner | Discovered new exit (range 6) 11675 | -6/Data Miner | Identified exit to Proximity Caves 11696 | -6/Data Miner | Met Data Miner 11720 | -6/Data Miner | Learned location of Section 7 (-2) 11720 | -6/Data Miner | Acquired the access code to Warlord's prototype stash 11736 | -6/Data Miner | Received God Mode back door access code from Data Miner 11750 | -6/Data Miner | Data Conduit disabled 11866 | -6/Data Miner | Entered Proximity Caves 11997 | -5/Proximity Caves | Learned Factory terminal intel 12072 | -5/Proximity Caves | Discovered exit to Factory (range 9) 12104 | -5/Proximity Caves | Build established: Scavenger-Mutant 12193 | -5/Proximity Caves | Entered Factory 12193 | -5/Factory | Evolved 2 slots: Utility x2 12194 | -5/Factory | Identified exit to Upper Caves 12196 | -5/Factory | Loaded intel: 26 terminal locations 12217 | -5/Factory | Joined by Warlord Ghost squad 12592 | -5/Factory | Discovered new exit (range 8) 12606 | -5/Factory | Identified exit to Factory 12622 | -5/Factory | Found Hvy. Reflective Plating 12628 | -5/Factory | Found Hvy. Reflective Plating 12942 | -5/Factory | Discovered exit to Upper Caves (range 12) 12948 | -5/Factory | Joined by Warlord Dakka squad 13100 | -5/Factory | Cargo convoy interrupted 13100 | -5/Factory | P-70 Sage assimilated allied ZU-VTH(s) 13140 | -5/Factory | Destroyed 7 combat bots 13147 | -5/Factory | Lost 4 allies 13324 | -5/Factory | System corruption reached 10% 13344 | -5/Factory | Lost 3 parts (1p1n1u) 13381 | -5/Factory | Garrison activated, responded to threat 13593 | -5/Factory | Joined by Warlord Muscle squad 13830 | -5/Factory | Entered Upper Caves 13969 | -5/Upper Caves | Learned Factory terminal intel 13975 | -5/Upper Caves | Destroyed 7 combat bots 14058 | -5/Upper Caves | Attracted the attention of an 0b10 checkpoint 14117 | -5/Upper Caves | Discovered new exit (range 10) 14128 | -5/Upper Caves | Identified exit to Upper Caves 14370 | -5/Upper Caves | Entered another Upper Caves area 14401 | -5/Upper Caves | Core integrity fell below 50% 14435 | -5/Upper Caves | Lost 7 parts (4n3u) 14442 | -5/Upper Caves | Discovered exit to Factory (range 16) 14459 | -5/Upper Caves | Destroyed 7 combat bots 14551 | -5/Upper Caves | Spotted B-75 Beast 14593 | -5/Upper Caves | Destroyed B-75 Beast 14766 | -5/Upper Caves | Discovered new exit (range 12) 14776 | -5/Upper Caves | Encountered a Warlord checkpoint 14788 | -5/Upper Caves | Identified exit to Warlord 15438 | -5/Upper Caves | Learned Factory stockpile data 15470 | -5/Upper Caves | Learned Factory emergency access door positions 15965 | -5/Upper Caves | Entered Warlord 16215 | -5/Warlord | Met Warlord 16230 | -5/Warlord | Opened Warlord's prototype stash 16235 | -5/Warlord | Found Prototype Reactor 16240 | -5/Warlord | Warlord's base attacked by MAIN.C 16268 | -5/Warlord | Found Prototype Hackware 16281 | -5/Warlord | Found Prototype Processor 16282 | -5/Warlord | Identified Exp. Core Analyzer 16453 | -5/Warlord | Learned Armory trap positions 16453 | -5/Warlord | Learned Research trap positions 16455 | -5/Warlord | Learned 4 Testing zone layouts 16457 | -5/Warlord | Learned Research garrison access intel 16504 | -5/Warlord | Found Prototype Special Weapon 16505 | -5/Warlord | Identified RU-N14's Throwing Claymores v3 16509 | -5/Warlord | Found RU-N14's Throwing Claymores v3 16514 | -5/Warlord | Found RU-N14's Throwing Claymores v3 16590 | -5/Warlord | Warlord forces counterattacked 16771 | -5/Warlord | Spotted Striker 16782 | -5/Warlord | Destroyed Striker 16803 | -5/Warlord | Destroyed 12 combat bots 16821 | -5/Warlord | Found Prototype Ballistic Cannon 16821 | -5/Warlord | Identified Hvy. Autocannon 16839 | -5/Warlord | Discovered new exit (range 31) 16853 | -5/Warlord | Spotted Striker 16855 | -5/Warlord | Spotted Striker 16861 | -5/Warlord | Destroyed Striker 16862 | -5/Warlord | Destroyed Striker 16885 | -5/Warlord | Destroyed 10 combat bots 16915 | -5/Warlord | Warlord base infiltrated, sounded retreat 16954 | -5/Warlord | Spotted Executioner 16958 | -5/Warlord | Destroyed Executioner 16983 | -5/Warlord | Lost 7 allies 16988 | -5/Warlord | Destroyed 9 combat bots 17017 | -5/Warlord | Identified exit to Proximity Caves 17022 | -5/Warlord | Entered Proximity Caves 17165 | -4/Proximity Caves | Learned Research trap positions 17931 | -4/Proximity Caves | Discovered exit to Factory (range 6) 17979 | -4/Proximity Caves | Spotted B-86 Titan 17996 | -4/Proximity Caves | Destroyed B-86 Titan 18094 | -4/Proximity Caves | Received a Behemoth hack from an annoying Tinkerer 18281 | -4/Proximity Caves | Entered Factory 18281 | -4/Factory | Evolved 2 slots: Propulsion x1, Utility x1 18284 | -4/Factory | Loaded intel: 25 terminal locations 18526 | -4/Factory | Discovered new exit (range 4) 18534 | -4/Factory | Identified exit to Upper Caves 18549 | -4/Factory | Identified Ghost Barrier 18581 | -4/Factory | Build established: Scavenger-Skirmisher 18904 | -4/Factory | Identified Vortex Chain Reactor 19032 | -4/Factory | Discovered exit to Upper Caves (range 14) 19154 | -4/Factory | Cargo convoy interrupted 19230 | -4/Factory | Fabricated Heavy Servo Lattice (x2) 19404 | -4/Factory | Discovered new exit (range 7) 19415 | -4/Factory | Identified exit to Research 19654 | -4/Factory | Found Quantum Capacitor 19860 | -4/Factory | P-70 Sage assimilated allied Veteran 7a 20042 | -4/Factory | Garrison activated, responded to threat 20069 | -4/Factory | Build established: Assassin 20311 | -4/Factory | Sucked down chute 20311 | -4/Factory | Entered Waste 20341 | -4/Waste | Spotted C-40 Crusher 20347 | -4/Waste | Found Prototype Device 20348 | -4/Waste | Spotted C-40 Crusher 20355 | -4/Waste | Destroyed C-40 Crusher 20355 | -4/Waste | Spotted C-40 Crusher 20358 | -4/Waste | Spotted C-40 Crusher 20358 | -4/Waste | Destroyed C-40 Crusher 20359 | -4/Waste | Spotted C-40 Crusher 20360 | -4/Waste | Destroyed C-40 Crusher 20360 | -4/Waste | Destroyed C-40 Crusher 20381 | -4/Waste | Build established: Mutant 20382 | -4/Waste | Destroyed C-40 Crusher 20398 | -4/Waste | Spotted C-40 Crusher 20405 | -4/Waste | Destroyed C-40 Crusher 20429 | -4/Waste | Identified Imp. Particle Accelerator 20542 | -4/Waste | Warlord forces began an assault 20711 | -4/Waste | Build established: Scavenger-Mutant 20764 | -4/Waste | Discovered new exit (range 15) 20781 | -4/Waste | Found Prototype Device 20782 | -4/Waste | Identified Exp. Thermal Shield 20838 | -4/Waste | Identified exit to Factory 20857 | -4/Waste | Entered Factory 20857 | -4/Factory | Accompanied by 18 allies 21018 | -4/Factory | Discovered exit to Upper Caves (range 9) 21320 | -4/Factory | Lost 7 allies 21392 | -4/Factory | First assault squad dispatched 21395 | -4/Factory | Garrison activated, responded to threat 21411 | -4/Factory | P-70 Sage assimilated allied 0J-KZK(l) 21464 | -4/Factory | Lost 3 allies 21788 | -4/Factory | Build established: Mutant 21860 | -4/Factory | Fabricated Biometal Heavy Treads (x1) 21913 | -4/Factory | Destroyed 9 combat bots 21985 | -4/Factory | Discovered exit to Research (range 13) 22018 | -4/Factory | High security lockdown imminent 22098 | -4/Factory | High security lockdown engaged 22118 | -4/Factory | Entered Research 22118 | -3/Research | Evolved 2 slots: Propulsion x1, Utility x1 22119 | -3/Research | Identified exit to Quarantine 22120 | -3/Research | Loaded intel: 82 trap records 22121 | -3/Research | Loaded intel: 4 garrison access locations 22138 | -3/Research | Lost 3 parts (2u1w) 22414 | -3/Research | First assault squad dispatched 22513 | -3/Research | Destroyed 7 combat bots 22596 | -3/Research | Spotted B-86 Titan 22639 | -3/Research | Destroyed B-86 Titan 22753 | -3/Research | Found Quantum Capacitor 22769 | -3/Research | Fabricated Quantum Reactor (x2) 22791 | -3/Research | Identified exit to Garrison 22792 | -3/Research | Entered Garrison 22875 | -3/Garrison | Phase Generator disabled 22923 | -3/Garrison | System corruption reached 10% 22954 | -3/Garrison | Destroyed 11 combat bots 22976 | -3/Garrison | Triggered checkpoint 22981 | -3/Garrison | Build established: Scavenger-Mutant 23184 | -3/Garrison | Lost 4 allies 23219 | -3/Garrison | Garrison Relay disabled 23244 | -3/Garrison | Triggered checkpoint 23326 | -3/Garrison | Triggered checkpoint 23390 | -3/Garrison | Triggered checkpoint 23635 | -3/Garrison | Triggered checkpoint 23647 | -3/Garrison | Spotted B-86 Titan 23652 | -3/Garrison | Allies destroyed B-86 Titan 23686 | -3/Garrison | Triggered checkpoint 23691 | -3/Garrison | Triggered checkpoint 23764 | -3/Garrison | Garrison Relay disabled 23798 | -3/Garrison | Discovered new exit (range 11) 23938 | -3/Garrison | Garrison Relay disabled 23955 | -3/Garrison | Discovered new exit (range 10) 24042 | -3/Garrison | Triggered checkpoint 24104 | -3/Garrison | Triggered checkpoint 24248 | -3/Garrison | Triggered checkpoint 24270 | -3/Garrison | Garrison Relay disabled 24303 | -3/Garrison | Discovered new exit (range 15) 24331 | -3/Garrison | Identified exit to Research 24400 | -3/Garrison | Entered Research 24400 | -3/Research | Accompanied by 2 allies 24401 | -3/Research | Loaded intel: 88 trap records 24426 | -3/Research | Identified exit to Garrison 24439 | -3/Research | Entered Garrison 24439 | -3/Garrison | Accompanied by 2 allies 24441 | -3/Garrison | Triggered checkpoint 24480 | -3/Garrison | Discovered new exit (range 6) 24555 | -3/Garrison | Triggered checkpoint 24656 | -3/Garrison | Garrison Relay disabled 24712 | -3/Garrison | Triggered checkpoint 24795 | -3/Garrison | Triggered checkpoint 24873 | -3/Garrison | Discovered new exit (range 14) 25009 | -3/Garrison | Spotted B-86 Titan 25014 | -3/Garrison | Destroyed B-86 Titan 25131 | -3/Garrison | Found Adv. Force Booster 25248 | -3/Garrison | Garrison Relay disabled 25330 | -3/Garrison | Discovered new exit (range 8) 25389 | -3/Garrison | Triggered checkpoint 25396 | -3/Garrison | Garrison Relay disabled 25411 | -3/Garrison | Triggered checkpoint 25451 | -3/Garrison | Garrison Relay disabled 25617 | -3/Garrison | Triggered checkpoint 25872 | -3/Garrison | Entered Research 25943 | -3/Research | Found Exp. Thermal Shield 26047 | -3/Research | Identified exit to DSF 26049 | -3/Research | Entered DSF 26094 | -3/DSF | Additional patrols routed to DSF 26179 | -3/DSF | Discovered new exit (range 14) 26361 | -3/DSF | Sterilization system engaged 26381 | -3/DSF | Ambient heat levels rising (+10) 26396 | -3/DSF | Ambient heat levels rising (+10) 26397 | -3/DSF | Entered Research 26397 | -2/Research | Warlord forces began assault on 0b10 26397 | -2/Research | Evolved 2 slots: Power x1, Utility x1 26422 | -2/Research | Distinguished unit "The Professionals" dispatched to help 26422 | -2/Research | Distinguished unit "Golden Rifle" dispatched to help 26450 | -2/Research | Spotted B-90 Cyclops 26507 | -2/Research | Research machine network offline 26681 | -2/Research | Met up with Warlord 27044 | -2/Research | Build established: Mutant 27085 | -2/Research | Borebot progress halted 27097 | -2/Research | Found Prototype Launcher 27097 | -2/Research | Identified Gui. Micro-nuke Launcher 27202 | -2/Research | Discovered new exit (range 4) 27486 | -2/Research | Warlord invited to help at Command 27611 | -2/Research | Entered Testing 27612 | -2/Testing | Maximum security lockdown engaged 27612 | -2/Testing | Identified exit to Access 27734 | -2/Testing | Garrison activated, responded to threat 27774 | -2/Testing | Unstable Terrabomb Derivative detonated 27787 | -2/Testing | Spotted Executioner 27789 | -2/Testing | Spotted Striker 27793 | -2/Testing | Spotted Striker 27797 | -2/Testing | Spotted Alpha 7 27805 | -2/Testing | Destroyed Striker 27808 | -2/Testing | Destroyed Executioner 27810 | -2/Testing | Destroyed Striker 27841 | -2/Testing | Destroyed Alpha 7 27859 | -2/Testing | Spotted Investigator 27859 | -2/Testing | Scanned by Researcher 27873 | -2/Testing | Destroyed 17 combat bots 27873 | -2/Testing | Destroyed Investigator 27930 | -2/Testing | System corruption reached 10% 27945 | -2/Testing | Core integrity fell below 50% 27951 | -2/Testing | Core integrity fell below 20% 27955 | -2/Testing | Destroyed by G-73 Enforcer with Heavy Laser Last Messages --------------- 27938_ Knocked back. 27938_ Centrium Leg destroyed. 27939_ Critical hit (Smash). 27939_ Centrium Leg destroyed. 27939_ Adv. Force Booster destroyed. 27939_ System corrupted by crushing effect (+2). 27939_ System corrupted by crushing effect (+4). 27939_ Knocked back. 27942_ Centrium Leg destroyed. 27942_ System corrupted by crushing effect (+3). 27945_ System corrupted: Component data lost. 27947_ B-74 Champion destroyed. 27948_ M-36 Artificer repairs G-73 Enforcer. 27950_ Vibroblade destroyed. 27950_ Knocked back. 27951_ Adv. Weapon Cycler destroyed. 27954_ M-36 Artificer repairs G-73 Enforcer. 27955_ Acquired Centrium Leg. [Achievement: Torch] Map ----- +----------------------------------------------------+ | ????????????????????? #?????## | | ????????????????????? ???????# | | ??????????????????????????????# | | ??????????????????????????????# | | ??????????????????????????????# | | ??????????????????????????????# | | ??????????????????????????????# | | ??????????????????????????????# | | ??????????????????????????????# | | ??????????????????????????????# | | ????????????????????????###???# | | ????????????????????????# """ # | | ????????????????????#???#""T""# | | ???????????????????## ##"" ""# | | ???????????????????# ! | | ???????????????????+ | | ???????????????????# | | ???????????????????# """ """ | | ??????????????????????""" """ | | ???????????????????# """ """ | | ????########???????# | | ????#" [%""#????#??# | | ????#"!==%[#??# #??# "" """ | | ????#!! =g ##b ##??? ""F""" | | ????#" %!gm#!b ##### " """"" | | ????#""@=glggg%% % | | ????#"/mbgggmm g [ | | ????#" l!gm#g*% %##+######## | | ????#"" mm%#g # % = #?# | | ????#####g #? # " ! #?# | | ????????####??# " """ #?# | | ???????????????#"! """"#?# | | ???????????????## i"F""#?# ## | | ????????????????" ! ""#?# ## | | ????????????????" """#?# ## | | ????????????????"! "" ### ## | | ????????????????# / ## | | ????????????????################ | | ???????????????????????????????# | | ???????????????????????????????# | | ???????????????????????????????? | | ???????????????????????????????? | | | | | | | | | | | | | | | | | +----------------------------------------------------+ Best States ------------- Heat Dissipation 115 Coolant Potential 220 Energy Generation 65 Energy Capacity 725 Matter Stores 300 Matter Capacity 300 Sight Range 16 Terrain Scan Range 18 Terrain Scan Density 10 ECM Strength 2 Jamming Range 16 Additional Mass Support 6 Armor Coverage 600 Resistance: KI 30 Resistance: TH 30 Resistance: EM 15 Propulsion Shielding 90 Weapon Shielding 66 Weapon Cycling 25 Phase Shifting 15 Evasion (%) 82 Targeting Accuracy 8 Core Analysis 11 Armor Integrity Analysis 40 Recoil Reduction 6 Energy Filtering 50 Particle Charging 40 Force Boost 40 Offensive Hacking 14 Defensive Hacking 34 Item Schematics ----------------- Combat Drone Bay | -6/Data Miner | Free Lgt. Regenerative Plating | -6/Data Miner | Free Cld. Nuclear Pulse Thruster | -6/Data Miner | Free Imp. Matter Compressor | -6/Data Miner | Free Kinetic Spear | -6/Data Miner | Free Myomer Leg | -6/Data Miner | Free Adv. Power Amplifier | -6/Data Miner | Free Micro-nuke Launcher | -6/Data Miner | Free Imp. Corruption Screen | -6/Data Miner | Free Adv. Reaction Control System | -6/Data Miner | Free Q-thruster | -6/Data Miner | Free Adv. Component Analysis Suite | -6/Data Miner | Free Heavy Servo Lattice | -5/Factory | Hacked Biometal Heavy Treads | -4/Factory | Hacked Robot Schematics ------------------ P-60 Hacker | -7/Factory | Hacked B-60 Warrior | -6/Data Miner | Free E-15 Imp | -6/Data Miner | Free Y-64 Sentinel | -6/Data Miner | Free B-48 Gladiator | -6/Data Miner | Free L-61 Swordsman | -6/Data Miner | Free A-27 Freighter | -6/Data Miner | Free Fabricated ------------ Heavy Servo Lattice | x2 | -4/Factory Biometal Heavy Treads | x1 | -4/Factory Quantum Reactor | x2 | -3/Research | Preloaded Alien Tech Used ----------------- None Achievements -------------- Torch Challenges ------------ None Game ------ Seed LinkedAblativeFlakker Manual? 0 Play Time 06:02:15 Cumulative 241.7 hours Start 2024.10.10 @ 23:55:46 End 2024.10.12 @ 21:56:08 Sessions 11 Manual Loads 0 Difficulty Rogue Special Mode None Game No. 190 Rogue 181 Adventurer 9 Explorer 0 Win Type - Total 1 Types 1/0/0/0/0/0/0/0/0 Lore% 80 Gallery% 74 Achievement% 61 Wizard Run 0 Options --------- Layout 1 ASCII 0 Keyboard 0 Movement Numpad Keybinds 0 Fullscreen 1 Font 24/Smallcaps Map View 50x35 Zoom Use 0% Tactical HUD 1 Map Filters NONE Filters NONE Steam 1 RUN: 636cdcea-c06f-4c44-ae62-c28d9379f71f